[Event "Irish International Open 2019"]
[Site "Dublin"]
[Date "2019.04.21"]
[Round "7.20"]
[White "Melaugh, Gavin"]
[Black "Goss, Alex"]
[Result "1-0"]
[ECO "D00"]
[WhiteElo "2109"]
[BlackElo "1765"]
[Annotator "NA"]
[PlyCount "125"]
[EventDate "2019.02.28"]
[EventType "swiss"]
[EventCountry "IRL"]
[SourceTitle "playchess.com"]
[Source "ChessBase"]
[SourceQuality "1"]
[TimeControl "5400+30"]

1. d4 {[%emt 0:05:28]} d5 {[%emt 0:00:00]} 2. Bf4 {[%emt 0:00:14]} Bf5 {[%emt 0:00:24]} 3. Nc3 {[%emt 0:00:12]} c6 {[%emt 0:00:08]} 4. Qd2 {[%emt 0:02:33]} Nf6 {[%emt 0:00:31]} 5. f3 {[%emt 0:00:20]} h6 {[%emt 0:01:32]} 6. g4 {[%emt 0:01:52]} Bh7 {[%emt 0:00:56]} 7. e3 {[%emt 0:00:13]} e6 {[%emt 0:01:00]} 8. Bd3 {[%emt 0:00:35]} Bxd3 {[%emt 0:00:19]} 9. Qxd3 {[%emt 0:01:28]} Bd6 {[%emt 0:00:15]} 10. Nge2 {[%emt 0:00:08]} Na6 {[%emt 0:01:05]} 11. a3 {[%emt 0:01:43]} Qe7 {[%emt 0:09:36]} 12. Ng3 {[%emt 0:03:39]} Qc7 {[%emt 0:04:45]} 13. Bxd6 {[%emt 0:06:17]} Qxd6 {[%emt 0:00:14]} 14. b4 {[%emt 0:00:59]} Nc7 {[%emt 0:00:39]} 15. Kf2 {[%emt 0:03:03]} a5 {[%emt 0:02:25]} 16. bxa5 {[%emt 0:01:25]} Rxa5 {[%emt 0:00:10]} 17. a4 {[%emt 0:01:12]} Ke7 {[%emt 0:03:00]} 18. Rhb1 {[%emt 0:02:29]} Rb8 {[%emt 0:02:45]} 19. h4 {[%emt 0:03:36]} b5 {[%emt 0:06:44]} 20. axb5 {[%emt 0:02:01]} Rxa1 {[%emt 0:00:48]} 21. Rxa1 {[%emt 0:00:01]} Nxb5 {[%emt 0:00:16]} 22. Na4 {[%emt 0:06:42]} Ra8 {[%emt 0:04:01]} 23. c4 {[%emt 0:01:40]} Qb4 {[%emt 0:01:21]} 24. cxb5 {[%emt 0:01:35]} cxb5 {[%emt 0:00:13]} 25. Rb1 {[%emt 0:01:55]} Qxa4 {[%emt 0:00:11]} 26. Qxb5 {[%emt 0:02:47]} Qxb5 {[%emt 0:04:06]} 27. Rxb5 {[%emt 0:00:25]} Ra2+ {[%emt 0:00:43]} 28. Ne2 {[%emt 0:02:38]} Nd7 {[%emt 0:05:14]} 29. Rb7 {[%emt 0:01:55]} Kd6 {[%emt 0:00:40]} 30. g5 {[%emt 0:04:26]} hxg5 {[%emt 0:01:00]} 31. hxg5 {[%emt 0:00:03]} Kc6 {[%emt 0:00:09]} 32. Rb1 {[%emt 0:00:38]} f6 {[%emt 0:03:06]} 33. Rh1 {[%emt 0:08:23]} Ra8 {[%emt 0:07:12]} 34. Rh7 {[%emt 0:07:55]} Rg8 {[%emt 0:00:29]} 35. Nf4 {[%emt 0:04:18]} Nf8 {[%emt 0:01:28]} 36. Rh1 {[%emt 0:03:06]} fxg5 {[%emt 0:01:17]} 37. Nh3 {[%emt 0:00:25]} Nh7 {[%emt 0:00:33]} 38. Rg1 {[%emt 0:00:43]} Kd6 {[%emt 0:00:49]} 39. Nxg5 {[%emt 0:01:08]} Nxg5 {[%emt 0:00:21]} 40. Rxg5 {[%emt 0:00:01]} Ke7 {[%emt 0:00:12]} 41. Rg1 {[%emt 0:02:58]} Kf6 {[%emt 0:00:14]} 42. Rb1 {[%emt 0:00:24]} Rc8 {[%emt 0:00:30]} 43. Rb3 {[%emt 0:02:19]} Rc7 {[%emt 0:01:49]} 44. Kg3 {[%emt 0:16:08]} Rc1 {[%emt 0:01:10]} 45. e4 {[%emt 0:00:00]} dxe4 {[%emt 0:00:47]} 46. fxe4 {[%emt 0:00:00]} Rc4 {[%emt 0:00:22]} 47. Rd3 {[%emt 0:00:00]} e5 {[%emt 0:00:33]} 48. Rf3+ {[%emt 0:00:00]} Ke6 {[%emt 0:00:14]} 49. d5+ {[%emt 0:00:00]} Kd6 {[%emt 0:00:07]} 50. Re3 {[%emt 0:00:00]} Kc5 {[%emt 0:00:44]} 51. Kg4 {[%emt 0:00:00]} Kd4 {[%emt 0:00:43]} 52. Re1 {[%emt 0:00:00]} Rc7 {[%emt 0:00:41]} 53. Kf5 {[%emt 0:00:00]} Rf7+ {[%emt 0:00:36]} 54. Ke6 {[%emt 0:00:00]} Rf6+ {[%emt 0:03:40]} 55. Ke7 {[%emt 0:00:00]} Rb6 {[%emt 0:00:23]} 56. d6 {[%emt 0:00:55]} g5 {[%emt 0:00:11]} 57. d7 {[%emt 0:01:14]} Rb7 {[%emt 0:00:02]} 58. Ke8 {[%emt 0:01:08]} Rb8+ {[%emt 0:00:25]} 59. d8=Q+ {[%emt 0:00:05]} Rxd8+ {[%emt 0:00:07]} 60. Kxd8 {[%emt 0:00:04]} g4 {[%emt 0:00:10]} 61. Ke7 {[%emt 0:00:07]} g3 {[%emt 0:00:07]} 62. Ke6 {[%emt 0:00:05]} g2 {[%emt 0:00:02]} 63. Kf5 {[%emt 0:00:04]} 1-0

[Event "Irish International Open 2019"]
[Site "Dublin"]
[Date "2019.04.21"]
[Round "7.21"]
[White "O`Connell, Kevin J."]
[Black "Kersten, Julian"]
[Result "1/2-1/2"]
[ECO "A48"]
[WhiteElo "2328"]
[BlackElo "1996"]
[Annotator "NA"]
[PlyCount "106"]
[EventDate "2019.02.28"]
[EventType "swiss"]
[EventCountry "IRL"]
[SourceTitle "playchess.com"]
[Source "ChessBase"]
[SourceQuality "1"]
[TimeControl "5400+30"]

1. d4 {[%emt 1:30:30]} Nf6 {[%emt 1:30:30]} 2. Bf4 {[%emt 0:00:30]} g6 {[%emt 0:00:30]} 3. e3 {[%emt 0:00:30]} Bg7 {[%emt 0:00:30]} 4. Nf3 {[%emt 0:00:30]} d6 {[%emt 0:00:30]} 5. h3 {[%emt 0:00:30]} O-O {[%emt 0:00:30]} 6. Bc4 {[%emt 0:00:30]} a6 {[%emt 0:00:30]} 7. a4 {[%emt 0:00:30]} b6 {[%emt 0:00:30]} 8. O-O {[%emt 0:00:30]} Bb7 {[%emt 0:00:30]} 9. c3 {[%emt 0:00:30]} c5 {[%emt 0:00:30]} 10. Nbd2 {[%emt 0:00:30]} Nbd7 {[%emt 0:00:30]} 11. b4 {[%emt 0:00:30]} Nd5 {[%emt 0:00:30]} 12. Qb3 {[%emt 0:00:30]} Nxf4 {[%emt 0:00:30]} 13. exf4 {[%emt 0:00:30]} cxd4 {[%emt 0:00:30]} 14. cxd4 {[%emt 0:00:30]} e6 {[%emt 0:00:30]} 15. Rac1 {[%emt 0:00:30]} Nf6 {[%emt 0:00:30]} 16. Rc2 {[%emt 0:00:30]} Qd7 {[%emt 0:00:30]} 17. Rfc1 {[%emt 0:00:30]} Rfc8 {[%emt 0:00:30]} 18. b5 {[%emt 0:00:30]} a5 {[%emt 0:00:30]} 19. g4 {[%emt 0:00:30]} Bd5 {[%emt 0:00:30]} 20. Bxd5 {[%emt 0:00:30]} Nxd5 {[%emt 0:00:30]} 21. Rxc8+ {[%emt 0:00:30]} Rxc8 {[%emt 0:00:30]} 22. Rxc8+ {[%emt 0:00:30]} Qxc8 {[%emt 0:00:30]} 23. Qc4 {[%emt 0:00:30]} Qxc4 {[%emt 0:00:30]} 24. Nxc4 {[%emt 0:00:30]} Kf8 {[%emt 0:00:30]} 25. Nxd6 {[%emt 0:00:30]} Nc3 {[%emt 0:00:30]} 26. Nc4 {[%emt 0:00:30]} Nxa4 {[%emt 0:00:30]} 27. Kf1 {[%emt 0:00:30]} Nc3 {[%emt 0:00:30]} 28. Nxa5 {[%emt 0:00:30]} Nxb5 {[%emt 0:00:30]} 29. Nb3 {[%emt 0:00:30]} Ke7 {[%emt 0:00:30]} 30. Ke2 {[%emt 0:00:30]} Nc3+ {[%emt 0:00:30]} 31. Kd2 {[%emt 0:00:30]} Nd5 {[%emt 0:00:30]} 32. f5 {[%emt 0:00:30]} gxf5 {[%emt 0:00:30]} 33. gxf5 {[%emt 0:00:30]} Bh6+ {[%emt 0:00:30]} 34. Kc2 {[%emt 0:00:30]} exf5 {[%emt 0:00:30]} 35. h4 {[%emt 0:00:30]} Kd6 {[%emt 0:00:30]} 36. Kd3 {[%emt 0:00:30]} Nf4+ {[%emt 0:00:30]} 37. Kc4 {[%emt 0:00:30]} Nh3 {[%emt 0:00:30]} 38. Ne5 {[%emt 0:00:30]} Ke6 {[%emt 0:00:30]} 39. f3 {[%emt 0:00:30]} Ng1 {[%emt 0:00:30]} 40. Nc6 {[%emt 0:00:30]} Nxf3 {[%emt 0:00:30]} 41. Kb5 {[%emt 0:00:30]} Nxh4 {[%emt 0:00:30]} 42. Kxb6 {[%emt 0:00:30]} Be3 {[%emt 0:00:30]} 43. Kc5 {[%emt 0:00:30]} f4 {[%emt 0:00:30]} 44. Kc4 {[%emt 0:00:30]} Nf5 {[%emt 0:00:30]} 45. Kd3 {[%emt 0:00:30]} f3 {[%emt 0:00:30]} 46. Nc5+ {[%emt 0:00:30]} Kf6 {[%emt 0:00:30]} 47. Ne4+ {[%emt 0:00:30]} Kg6 {[%emt 0:00:30]} 48. Ne5+ {[%emt 0:00:30]} Kg7 {[%emt 0:00:30]} 49. Nxf3 {[%emt 0:00:30]} Bxd4 {[%emt 0:00:30]} 50. Nxd4 {[%emt 0:00:30]} Nxd4 {[%emt 0:00:30]} 51. Kxd4 {[%emt 0:00:30]} f5 {[%emt 0:00:30]} 52. Ng3 {[%emt 0:00:30]} Kg6 {[%emt 0:00:30]} 53. Nxf5 {[%emt 0:00:30]} Kxf5 {[%emt 0:00:30]} 1/2-1/2

[Event "Irish International Open 2019"]
[Site "Dublin"]
[Date "2019.04.21"]
[Round "7.22"]
[White "O'Mahoney, Keegan"]
[Black "Flynn, Jacob"]
[Result "0-1"]
[ECO "A61"]
[WhiteElo "1875"]
[BlackElo "2011"]
[Annotator "NA"]
[PlyCount "160"]
[EventDate "2019.02.28"]
[EventType "swiss"]
[EventCountry "IRL"]
[SourceTitle "playchess.com"]
[Source "ChessBase"]
[SourceQuality "1"]
[TimeControl "5400+30"]

1. d4 {[%emt 0:04:24]} Nf6 {[%emt 0:00:45]} 2. c4 {[%emt 0:00:52]} c5 {[%emt 0:00:13]} 3. d5 {[%emt 0:00:05]} e6 {[%emt 0:00:04]} 4. Nc3 {[%emt 0:00:04]} exd5 {[%emt 0:00:04]} 5. cxd5 {[%emt 0:00:03]} d6 {[%emt 0:00:05]} 6. Nf3 {[%emt 0:00:16]} g6 {[%emt 0:00:17]} 7. Bf4 {[%emt 0:01:03]} Bg7 {[%emt 0:00:40]} 8. Qa4+ {[%emt 0:00:41]} Bd7 {[%emt 0:08:03]} 9. Qb3 {[%emt 0:03:01]} Qc7 {[%emt 0:01:09]} 10. h3 {[%emt 0:16:02]} O-O {[%emt 0:02:47]} 11. e3 {[%emt 0:10:44]} Re8 {[%emt 0:15:42]} 12. Bd3 {[%emt 0:05:50]} Na6 {[%emt 0:08:54]} 13. O-O {[%emt 0:15:28]} Rac8 {[%emt 0:13:18]} 14. Nd2 {[%emt 0:05:10]} Nb4 {[%emt 0:05:07]} 15. Bc4 {[%emt 0:09:18]} Nh5 {[%emt 0:01:41]} 16. Bh2 {[%emt 0:02:53]} Be5 {[%emt 0:00:50]} 17. a3 {[%emt 0:03:08]} Na6 {[%emt 0:00:30]} 18. a4 {[%emt 0:05:12]} Nb4 {[%emt 0:01:04]} 19. Nb5 {[%emt 0:02:53]} Qb8 {[%emt 0:03:38]} 20. Be2 {[%emt 0:01:29]} Bxh2+ {[%emt 0:02:52]} 21. Kxh2 {[%emt 0:00:05]} a6 {[%emt 0:02:59]} 22. Nc3 {[%emt 0:01:16]} Nf6 {[%emt 0:00:32]} 23. Rfd1 {[%emt 0:02:26]} Bf5 {[%emt 0:04:46]} 24. Rac1 {[%emt 0:01:59]} Qc7 {[%emt 0:06:48]} 25. Nc4 {[%emt 0:01:18]} Ne4 {[%emt 0:00:42]} 26. Kg1 {[%emt 0:01:04]} Qe7 {[%emt 0:01:06]} 27. Bf3 {[%emt 0:02:18]} Ng5 {[%emt 0:02:16]} 28. Be2 {[%emt 0:01:34]} Rcd8 {[%emt 0:00:15]} 29. h4 {[%emt 0:01:28]} Ne4 {[%emt 0:00:26]} 30. g3 {[%emt 0:00:11]} Qf6 {[%emt 0:00:51]} 31. Bf3 {[%emt 0:01:45]} Nxf2 {[%emt 0:03:11]} 32. Kxf2 {[%emt 0:00:16]} Bg4 {[%emt 0:00:09]} 33. Nd2 {[%emt 0:00:23]} Nd3+ {[%emt 0:01:27]} 34. Ke2 {[%emt 0:00:49]} Nxc1+ {[%emt 0:01:45]} 35. Rxc1 {[%emt 0:00:04]} Bxf3+ {[%emt 0:01:44]} 36. Nxf3 {[%emt 0:00:05]} Re7 {[%emt 0:00:47]} 37. Rf1 {[%emt 0:01:30]} Rde8 {[%emt 0:00:17]} 38. Nd1 {[%emt 0:00:10]} Qf5 {[%emt 0:01:14]} 39. Ng5 {[%emt 0:01:34]} Qg4+ {[%emt 0:00:19]} 40. Kf2 {[%emt 0:00:34]} Re5 {[%emt 0:02:02]} 41. Kg2 {[%emt 0:00:30]} R8e7 {[%emt 0:01:08]} 42. Rf4 {[%emt 0:00:24]} Qe2+ {[%emt 0:00:50]} 43. Rf2 {[%emt 0:00:05]} Qg4 {[%emt 0:00:43]} 44. Rf4 {[%emt 0:00:06]} Qd7 {[%emt 0:00:20]} 45. Qc4 {[%emt 0:01:13]} b5 {[%emt 0:00:17]} 46. axb5 {[%emt 0:00:08]} axb5 {[%emt 0:00:07]} 47. Qd3 {[%emt 0:00:32]} c4 {[%emt 0:01:28]} 48. Qd4 {[%emt 0:00:19]} Qb7 {[%emt 0:01:43]} 49. Nc3 {[%emt 0:00:49]} f5 {[%emt 0:01:45]} 50. Rf3 {[%emt 0:00:41]} b4 {[%emt 0:00:19]} 51. Ne2 {[%emt 0:00:33]} Qxd5 {[%emt 0:00:53]} 52. Qxd5+ {[%emt 0:00:07]} Rxd5 {[%emt 0:00:05]} 53. Nd4 {[%emt 0:00:31]} Rxd4 {[%emt 0:01:07]} 54. exd4 {[%emt 0:00:09]} Re2+ {[%emt 0:00:03]} 55. Rf2 {[%emt 0:01:01]} Re3 {[%emt 0:00:46]} 56. Nf3 {[%emt 0:00:47]} Kg7 {[%emt 0:02:01]} 57. Rc2 {[%emt 0:00:08]} d5 {[%emt 0:00:05]} 58. Kf2 {[%emt 0:00:11]} Rd3 {[%emt 0:01:08]} 59. Rd2 {[%emt 0:00:29]} Rb3 {[%emt 0:00:19]} 60. Ne5 {[%emt 0:00:54]} c3 {[%emt 0:01:20]} 61. bxc3 {[%emt 0:00:47]} bxc3 {[%emt 0:00:05]} 62. Re2 {[%emt 0:00:15]} Rb2 {[%emt 0:01:19]} 63. Nf3 {[%emt 0:00:12]} c2 {[%emt 0:00:17]} 64. Rxc2 {[%emt 0:01:11]} Rxc2+ {[%emt 0:00:05]} 65. Ke3 {[%emt 0:00:05]} Ra2 {[%emt 0:00:26]} 66. Kf4 {[%emt 0:00:12]} Re2 {[%emt 0:00:32]} 67. Ng5 {[%emt 0:01:09]} h6 {[%emt 0:00:07]} 68. Kf3 {[%emt 0:00:21]} Re8 {[%emt 0:01:14]} 69. Nh3 {[%emt 0:00:13]} Kf6 {[%emt 0:00:57]} 70. Nf4 {[%emt 0:00:26]} Rd8 {[%emt 0:00:09]} 71. g4 {[%emt 0:00:31]} fxg4+ {[%emt 0:00:32]} 72. Kxg4 {[%emt 0:00:06]} Rd6 {[%emt 0:00:39]} 73. Nh3 {[%emt 0:00:34]} Ra6 {[%emt 0:00:49]} 74. Nf4 {[%emt 0:00:16]} h5+ {[%emt 0:00:23]} 75. Kf3 {[%emt 0:00:56]} Ra3+ {[%emt 0:00:12]} 76. Kf2 {[%emt 0:00:23]} Ra5 {[%emt 0:00:36]} 77. Kf3 {[%emt 0:01:12]} Kf5 {[%emt 0:00:07]} 78. Ng2 {[%emt 0:00:31]} Ra3+ {[%emt 0:00:16]} 79. Ne3+ {[%emt 0:00:25]} Rxe3+ {[%emt 0:00:06]} 80. Kxe3 {[%emt 0:00:05]} Kg4 {[%emt 0:00:06]} 0-1

[Event "Irish International Open 2019"]
[Site "Dublin"]
[Date "2019.04.21"]
[Round "7.23"]
[White "Moran, Darragh"]
[Black "Mulligan, Scott"]
[Result "1/2-1/2"]
[ECO "C15"]
[WhiteElo "1844"]
[BlackElo "2006"]
[Annotator "NA"]
[PlyCount "39"]
[EventDate "2019.02.28"]
[EventType "swiss"]
[EventCountry "IRL"]
[SourceTitle "playchess.com"]
[Source "ChessBase"]
[SourceQuality "1"]
[TimeControl "5400+30"]

1. e4 {[%emt 0:01:19]} e6 {[%emt 0:00:37]} 2. d4 {[%emt 0:00:39]} d5 {[%emt 0:00:02]} 3. Nc3 {[%emt 0:00:22]} Bb4 {[%emt 0:00:35]} 4. Nge2 {[%emt 0:00:04]} Nf6 {[%emt 0:06:02]} 5. a3 {[%emt 0:05:51]} Be7 {[%emt 0:01:05]} 6. Ng3 {[%emt 0:02:47]} dxe4 {[%emt 0:05:37]} 7. Ncxe4 {[%emt 0:03:59]} Nbd7 {[%emt 0:02:04]} 8. Bd3 {[%emt 0:03:45]} b6 {[%emt 0:06:06]} 9. Bf4 {[%emt 0:11:51]} Bb7 {[%emt 0:04:52]} 10. Qe2 {[%emt 0:02:09]} Nxe4 {[%emt 0:03:59]} 11. Bxe4 {[%emt 0:05:24]} Bxe4 {[%emt 0:00:35]} 12. Nxe4 {[%emt 0:01:16]} Nf6 {[%emt 0:01:06]} 13. O-O-O {[%emt 0:01:30]} Nxe4 {[%emt 0:01:09]} 14. Qxe4 {[%emt 0:00:10]} O-O {[%emt 0:00:03]} 15. h4 {[%emt 0:08:40]} Bf6 {[%emt 0:09:27]} 16. g4 {[%emt 0:08:05]} Rc8 {[%emt 0:06:26]} 17. Kb1 {[%emt 0:13:08]} Qd5 {[%emt 0:01:52]} 18. Qxd5 {[%emt 0:02:43]} exd5 {[%emt 0:00:01]} 19. Bg5 {[%emt 0:00:38]} Bd8 {[%emt 0:00:21]} 20. Bxd8 {[%emt 0:01:22]} 1/2-1/2

[Event "Irish International Open 2019"]
[Site "Dublin"]
[Date "2019.04.21"]
[Round "7.24"]
[White "Schmitz, Andreas Arnold"]
[Black "Putar, Lara"]
[Result "1-0"]
[ECO "B11"]
[WhiteElo "2003"]
[BlackElo "1641"]
[Annotator "NA"]
[PlyCount "71"]
[EventDate "2019.02.28"]
[EventType "swiss"]
[EventCountry "IRL"]
[SourceTitle "playchess.com"]
[Source "ChessBase"]
[SourceQuality "1"]
[TimeControl "5400+30"]

1. e4 {[%emt 0:00:00]} c6 {[%emt 0:00:00]} 2. Nc3 {[%emt 0:00:00]} d5 {[%emt 0:00:00]} 3. Qf3 {[%emt 0:00:00]} d4 {[%emt 0:01:19]} 4. Bc4 {[%emt 0:00:04]} e6 {[%emt 0:00:44]} 5. Nce2 {[%emt 0:00:43]} c5 {[%emt 0:01:50]} 6. d3 {[%emt 0:01:01]} Nc6 {[%emt 0:02:41]} 7. Qg3 {[%emt 0:06:01]} Nge7 {[%emt 0:03:18]} 8. f4 {[%emt 0:02:29]} Ng6 {[%emt 0:04:11]} 9. Nf3 {[%emt 0:00:59]} Be7 {[%emt 0:01:30]} 10. h4 {[%emt 0:02:08]} h5 {[%emt 0:04:11]} 11. Ng5 {[%emt 0:02:45]} Bxg5 {[%emt 0:12:56]} 12. hxg5 {[%emt 0:05:03]} b5 {[%emt 0:03:34]} 13. Bb3 {[%emt 0:01:03]} Na5 {[%emt 0:06:52]} 14. f5 {[%emt 0:07:59]} Nxb3 {[%emt 0:02:27]} 15. axb3 {[%emt 0:00:07]} exf5 {[%emt 0:01:00]} 16. exf5 {[%emt 0:09:29]} Bxf5 {[%emt 0:03:39]} 17. Qf3 {[%emt 0:00:31]} Bg4 {[%emt 0:01:43]} 18. Qc6+ {[%emt 0:01:10]} Kf8 {[%emt 0:02:31]} 19. Qxc5+ {[%emt 0:00:29]} Kg8 {[%emt 0:01:12]} 20. Qxd4 {[%emt 0:05:54]} Qe7 {[%emt 0:04:02]} 21. Be3 {[%emt 0:06:18]} Re8 {[%emt 0:00:41]} 22. Kd2 {[%emt 0:00:48]} Bxe2 {[%emt 0:01:31]} 23. Kxe2 {[%emt 0:00:16]} Qxg5 {[%emt 0:00:47]} 24. Rag1 {[%emt 0:09:43]} f5 {[%emt 0:07:16]} 25. g3 {[%emt 0:00:46]} h4 {[%emt 0:02:00]} 26. gxh4 {[%emt 0:12:19]} Qh5+ {[%emt 0:00:11]} 27. Kd2 {[%emt 0:00:29]} Ne5 {[%emt 0:06:40]} 28. Kc1 {[%emt 0:01:48]} Rh7 {[%emt 0:06:13]} 29. Rf1 {[%emt 0:10:33]} Qe2 {[%emt 0:00:48]} 30. Bd2 {[%emt 0:00:53]} Nf3 {[%emt 0:03:41]} 31. Qd5+ {[%emt 0:00:16]} Kh8 {[%emt 0:01:32]} 32. Qxf3 {[%emt 0:00:15]} Qe7 {[%emt 0:01:30]} 33. Re1 {[%emt 0:01:19]} Qd7 {[%emt 0:00:17]} 34. Qxf5 {[%emt 0:01:19]} Rxe1+ {[%emt 0:02:04]} 35. Rxe1 {[%emt 0:00:09]} Qc6 {[%emt 0:00:51]} 36. Qf8# {[%emt 0:00:29]} 1-0

[Event "Irish International Open 2019"]
[Site "Dublin"]
[Date "2019.04.21"]
[Round "7.25"]
[White "Carroll, Peter"]
[Black "Moran, Hugh"]
[Result "1/2-1/2"]
[ECO "A00"]
[WhiteElo "2006"]
[BlackElo "1522"]
[Annotator "NA"]
[PlyCount "53"]
[EventDate "2019.02.28"]
[EventType "swiss"]
[EventCountry "IRL"]
[SourceTitle "playchess.com"]
[Source "ChessBase"]
[SourceQuality "1"]
[TimeControl "5400+30"]

1. c3 {[%emt 0:02:46]} d6 {[%emt 0:00:22]} 2. c4 {[%emt 0:04:28]} Nf6 {[%emt 0:00:37]} 3. b4 {[%emt 0:01:23]} e5 {[%emt 0:00:16]} 4. Bb2 {[%emt 0:00:26]} Nbd7 {[%emt 0:00:06]} 5. e3 {[%emt 0:00:20]} Be7 {[%emt 0:00:05]} 6. Nf3 {[%emt 0:00:39]} O-O {[%emt 0:00:30]} 7. a3 {[%emt 0:01:26]} c6 {[%emt 0:00:10]} 8. d4 {[%emt 0:00:08]} Qc7 {[%emt 0:00:28]} 9. Be2 {[%emt 0:00:44]} a5 {[%emt 0:01:42]} 10. Nc3 {[%emt 0:04:11]} Re8 {[%emt 0:04:13]} 11. O-O {[%emt 0:01:59]} Bf8 {[%emt 0:01:49]} 12. Qc2 {[%emt 0:01:56]} g6 {[%emt 0:00:23]} 13. Rfd1 {[%emt 0:00:37]} Bg7 {[%emt 0:00:16]} 14. b5 {[%emt 0:01:22]} c5 {[%emt 0:00:55]} 15. Na4 {[%emt 0:03:44]} b6 {[%emt 0:01:54]} 16. Rd2 {[%emt 0:06:12]} Bb7 {[%emt 0:01:30]} 17. Bc3 {[%emt 0:04:39]} Ne4 {[%emt 0:01:21]} 18. Rdd1 {[%emt 0:03:44]} Nxc3 {[%emt 0:03:25]} 19. Nxc3 {[%emt 0:00:37]} Nf6 {[%emt 0:01:46]} 20. Ra2 {[%emt 0:06:46]} Rad8 {[%emt 0:01:13]} 21. Qb1 {[%emt 0:08:25]} exd4 {[%emt 0:00:39]} 22. exd4 {[%emt 0:01:24]} Ne4 {[%emt 1:17:20]} 23. Na4 {[%emt 0:02:07]} f5 {[%emt 0:00:00]} 24. Bd3 {[%emt 0:05:57]} Bf6 {[%emt 0:00:00]} 25. Re2 {[%emt 0:03:22]} Ng5 {[%emt 0:00:00]} 26. Nxg5 {[%emt 0:00:25]} Bxg5 {[%emt 0:00:00]} 27. d5 {[%emt 0:06:06]} 1/2-1/2

[Event "Irish International Open 2019"]
[Site "Dublin"]
[Date "2019.04.21"]
[Round "7.26"]
[White "Larter, Nick J."]
[Black "Scallan, Fiachra"]
[Result "1/2-1/2"]
[ECO "A22"]
[WhiteElo "1830"]
[BlackElo "1899"]
[Annotator "NA"]
[PlyCount "94"]
[EventDate "2019.02.28"]
[EventType "swiss"]
[EventCountry "IRL"]
[SourceTitle "playchess.com"]
[Source "ChessBase"]
[SourceQuality "1"]
[TimeControl "5400+30"]

1. c4 {[%emt 0:00:00]} e5 {[%emt 0:01:30]} 2. Nc3 {[%emt 0:00:24]} Nf6 {[%emt 0:00:33]} 3. g3 {[%emt 0:00:14]} d5 {[%emt 0:00:27]} 4. cxd5 {[%emt 0:01:14]} Nxd5 {[%emt 0:00:02]} 5. Bg2 {[%emt 0:00:22]} Nb6 {[%emt 0:00:09]} 6. d3 {[%emt 0:01:58]} Be7 {[%emt 0:01:16]} 7. f4 {[%emt 0:04:31]} exf4 {[%emt 0:05:49]} 8. Bxf4 {[%emt 0:00:16]} Nc6 {[%emt 0:02:39]} 9. Nf3 {[%emt 0:01:24]} O-O {[%emt 0:03:12]} 10. O-O {[%emt 0:00:39]} Be6 {[%emt 0:04:13]} 11. Qd2 {[%emt 0:13:29]} Qd7 {[%emt 0:03:49]} 12. Ne4 {[%emt 0:08:32]} Nd5 {[%emt 0:03:01]} 13. Ne5 {[%emt 0:03:37]} Nxe5 {[%emt 0:01:56]} 14. Bxe5 {[%emt 0:00:13]} f6 {[%emt 0:00:49]} 15. Bd4 {[%emt 0:08:28]} Nf4 {[%emt 0:09:02]} 16. Rxf4 {[%emt 0:02:59]} Qxd4+ {[%emt 0:01:13]} 17. e3 {[%emt 0:00:07]} Qb6 {[%emt 0:00:55]} 18. b3 {[%emt 0:05:55]} Bb4 {[%emt 0:03:21]} 19. Nxf6+ {[%emt 0:00:14]} Rxf6 {[%emt 0:01:04]} 20. Rxb4 {[%emt 0:00:07]} Qa5 {[%emt 0:00:54]} 21. Qe1 {[%emt 0:02:22]} Bd5 {[%emt 0:04:24]} 22. Rf4 {[%emt 0:05:57]} Qxe1+ {[%emt 0:03:19]} 23. Rxe1 {[%emt 0:00:09]} Rd6 {[%emt 0:00:59]} 24. Rd4 {[%emt 0:03:40]} Rad8 {[%emt 0:00:29]} 25. Bxd5+ {[%emt 0:01:06]} Rxd5 {[%emt 0:00:01]} 26. Rxd5 {[%emt 0:00:23]} Rxd5 {[%emt 0:00:02]} 27. Rd1 {[%emt 0:00:36]} a5 {[%emt 0:01:15]} 28. e4 {[%emt 0:00:37]} Rc5 {[%emt 0:01:11]} 29. Rd2 {[%emt 0:00:13]} b5 {[%emt 0:00:47]} 30. Kf2 {[%emt 0:00:14]} a4 {[%emt 0:00:28]} 31. bxa4 {[%emt 0:00:14]} bxa4 {[%emt 0:00:02]} 32. Ke3 {[%emt 0:00:53]} a3 {[%emt 0:01:12]} 33. Kd4 {[%emt 0:03:24]} Rb5 {[%emt 0:00:16]} 34. Kc3 {[%emt 0:01:07]} Kf7 {[%emt 0:00:43]} 35. d4 {[%emt 0:02:29]} Ke6 {[%emt 0:00:29]} 36. Rf2 {[%emt 0:02:30]} h6 {[%emt 0:01:27]} 37. h4 {[%emt 0:00:38]} Rb7 {[%emt 0:02:23]} 38. g4 {[%emt 0:01:24]} Rb1 {[%emt 0:01:00]} 39. g5 {[%emt 0:03:39]} hxg5 {[%emt 0:01:52]} 40. hxg5 {[%emt 0:00:16]} c6 {[%emt 0:02:25]} 41. g6 {[%emt 0:07:27]} Rg1 {[%emt 0:14:06]} 42. Kb3 {[%emt 0:00:16]} Rxg6 {[%emt 0:00:39]} 43. Kxa3 {[%emt 0:00:06]} Rg1 {[%emt 0:02:16]} 44. Re2 {[%emt 0:00:58]} Rd1 {[%emt 0:02:30]} 45. Rc2 {[%emt 0:03:58]} Rxd4 {[%emt 0:01:14]} 46. Rxc6+ {[%emt 0:00:30]} Kf7 {[%emt 0:00:58]} 47. Rc7+ {[%emt 0:13:41]} Ke8 {[%emt 0:00:41]} 1/2-1/2